[Event "51st Rilton Cup 2023-24"]
[Site "Stockholm"]
[Date "2023.12.31"]
[Round "5.12"]
[White "Costa, Leonardo"]
[Black "Doraszelski, Alexander"]
[Result "1-0"]
[ECO "B72"]
[WhiteElo "2472"]
[BlackElo "2198"]
[Annotator "TA"]
[PlyCount "125"]
[EventDate "2023.12.27"]
[EventType "swiss"]
[EventCountry "SWE"]
[SourceTitle "playchess.com"]
[Source "ChessBase"]
[SourceQuality "1"]
[TimeControl "40/5400+30:1800+30"]

{[%evp 14,125,38,23,42,21,24,25,41,37,44,46,43,29,71,50,65,49,52,53,55,37,87,72,89,55,58,56,56,56,60,53,56,49,65,64,58,54,68,40,51,40,64,34,34,34,28,29,47,7,14,0,0,0,0,0,0,0,0,0,0,0,0,0,0,0,0,0,0,4,5,0,0,0,0,0,0,0,0,0,0,0,41,45,762,656,12836,12835,12837,12838,12838,12839,12839,8,8,11,12842,12843,12843,12843,12844,12843,12843,12843,12844,16,12848,12848,12849,12848,12850,27999,27999,27999]} 1. e4 {[%emt 0:00:03]} c5 {[%emt 0:00:10]} 2. Nf3 {[%emt 0:00:05]} d6 {[%emt 0:00:06]} 3. d4 {[%emt 0:00:03]} cxd4 {[%emt 0:00:07]} 4. Nxd4 {[%emt 0:00:04]} Nf6 {[%emt 0:00:11]} 5. Nc3 {[%emt 0:00:03]} a6 {[%emt 0:00:08]} 6. Bd3 {[%emt 0:00:04]} g6 {[%emt 0:01:19]} 7. f3 {[%emt 0:00:04]} Bg7 {[%emt 0:00:39]} 8. Be3 {[%emt 0:00:04]} O-O {[%emt 0:02:38] B72: Sicilian Dragon: 6 Be3, lines with h3+Bc4 and sidelines.} 9. Qd2 {[%emt 0:00:29]} Nc6 {[%emt 0:03:51]} 10. O-O-O {[%emt 0:00:06]} d5 {[%emt 0:06:05] White has an edge.} 11. Nxc6 {[%emt 0:00:06]} bxc6 {[%emt 0:00:07] [#]} 12. Bc4 $1 {[%emt 0:00:03][%cal Re4d5]} Rb8 {[%emt 0:11:34]} 13. Bb3 {[%emt 0:00:11][%cal Re4d5] [#]} Be6 $146 {[%emt 0:21:26]} ({Predecessor:} 13... Qc7 14. exd5 Nxd5 15. Bd4 Bxd4 16. Qxd4 Be6 17. h4 Rfd8 18. Bxd5 cxd5 19. h5 g5 {½-½ Van Leeuwen,E (2465)-Margana,A (2439) olm22 sf05 email 2020 [1]}) 14. h4 {[%emt 0:23:13][%cal Re4d5]} h5 {[%emt 0:07:00]} 15. exd5 {[%emt 0:02:23]} Nxd5 {[%emt 0:04:55]} 16. Bd4 {[%emt 0:01:29]} Bxd4 {[%emt 0:02:51]} 17. Qxd4 {[%emt 0:00:06]} Nxc3 {[%emt 0:00:41]} (17... Qc7 $14) 18. Qxc3 $16 {[%emt 0:01:16]} Qc8 {[%emt 0:00:13]} 19. Rhe1 {[%emt 0:10:59] Bxe6 would be deadly. White is much more active.} Bxb3 {[%emt 0:01:33]} 20. axb3 {[%emt 0:00:11]} Qc7 {[%emt 0:02:03]} 21. Qe5 {[%emt 0:01:18] Repels Qf4+} Rb7 {[%emt 0:02:24]} 22. Qxc7 {[%emt 0:02:27]} Rxc7 $14 {[%emt 0:00:01][%mdl 4096] Endgame KRR-KRR} 23. Re4 {[%emt 0:03:12]} Kg7 {[%emt 0:06:37]} 24. Ra4 {[%emt 0:14:53]} Ra8 {[%emt 0:00:46]} 25. Ra5 {[%emt 0:01:28]} Kf6 {[%emt 0:01:30]} 26. b4 {[%emt 0:00:51]} Rb7 {[%emt 0:06:37]} 27. c3 {[%emt 0:00:24]} Ke6 {[%emt 0:01:32]} 28. Kc2 {[%emt 0:07:39]} (28. Rc5 $5 {[%cal Rc5c6]}) 28... Rb5 $1 {[%emt 0:06:37]} 29. Rda1 {[%emt 0:00:05]} Rxa5 {[%emt 0:00:21]} 30. Rxa5 {[%emt 0:00:04] KR-KR} Kd6 {[%emt 0:00:58]} 31. c4 {[%emt 0:13:00]} Kc7 $1 {[%emt 0:00:09]} 32. b5 {[%emt 0:00:01]} cxb5 {[%emt 0:00:11]} 33. cxb5 {[%emt 0:00:03]} Rc8 $1 {[%emt 0:00:38]} 34. Rxa6 {[%emt 0:00:02] aiming for Rc6+.} Kb7+ {[%emt 0:00:45]} 35. Rc6 {Threatens to win with Rxc8.} Rd8 {[%emt 0:00:31]} 36. Rc3 {[%emt 0:00:49]} Kb6 {[%emt 0:01:39]} 37. Rd3 {[%emt 0:00:11]} Rc8+ {[%emt 0:01:07]} 38. Kd2 {[%emt 0:05:48]} Rc7 {[%emt 0:02:26]} 39. g3 {[%emt 0:07:39]} Kxb5 {[%emt 0:02:27]} 40. Rb3+ {[%emt 0:00:04]} Ka6 {[%emt 0:00:09]} 41. Ke3 {[%emt 0:34:57]} Ka7 {[%emt 0:08:59]} 42. Kf4 {[%emt 0:00:00] Kg5 is the strong threat.} Rc5 {[%emt 0:01:37]} 43. Rb4 {[%emt 0:00:00]} e5+ {[%emt 0:03:49]} 44. Ke3 {[%emt 0:00:00]} f5 {[%emt 0:02:53]} 45. Rb3 {[%emt 0:00:00]} Rd5 {[%emt 0:03:24]} 46. Ke2 {[%emt 0:00:00]} Rc5 {[%emt 0:02:04]} 47. Kd2 {[%emt 0:00:00]} e4 {[%emt 0:02:37]} 48. fxe4 {[%emt 0:00:00]} fxe4 {[%emt 0:00:01][%mdl 8192]} (48... g5 $14) 49. Ke3 $18 {[%emt 0:00:00]} g5 {[%emt 0:01:05]} 50. Kd4 $1 {[%emt 0:00:00]} ({Not} 50. Kxe4 gxh4 51. gxh4 Rc4+ 52. Kf3 Rxh4 $11) 50... Rf5 {[%emt 0:01:45]} 51. Kxe4 {[%emt 0:00:00]} Rc5 {[%emt 0:00:04] [#]} 52. hxg5 $1 {[%emt 0:00:00]} Rxg5 {[%emt 0:00:06]} 53. Kf4 $2 {[%emt 0:00:00]} (53. Kf3 $18 {Black must now prevent Rb4.} Ka6 54. Rb4) 53... Rg4+ $11 {[%emt 0:02:05]} 54. Kf3 {[%emt 0:00:00] Hoping for Rb5.} Rg5 {[%emt 0:01:43][%mdl 8192] Repels Rb5} (54... Ka6 $11) 55. Rb4 $18 {[%emt 0:00:00]} Ka6 {[%emt 0:00:51]} 56. Kg2 {[%emt 0:00:00]} Ka5 {[%emt 0:01:03]} 57. Rc4 {[%emt 0:00:47]} Kb5 {[%emt 0:01:06] [#]} 58. b3 $1 Re5 {[%emt 0:00:33]} 59. Kh3 $2 {[%emt 0:00:13]} (59. Rc1 $18 Kb4 60. Kh3) 59... Re3 $2 {[%emt 0:00:21][%mdl 8192]} (59... Re1 $11) 60. Rc8 {[%emt 0:00:20]} Kb6 {[%emt 0:00:30]} 61. Rh8 {[%emt 0:00:56]} Kc7 {[%emt 0:00:19]} 62. Rxh5 {[%emt 0:00:04]} Rxb3 {[%emt 0:00:03]} 63. Rd5 {[%emt 0:00:04] Weighted Error Value: White=0.38/Black=0.07 (flawless)} 1-0

[Event "51st Rilton Cup 2023-24"]
[Site "Stockholm"]
[Date "2023.12.31"]
[Round "5.13"]
[White "Krishnan, Ritvik"]
[Black "Gorshtein, Ido"]
[Result "0-1"]
[ECO "E48"]
[WhiteElo "2346"]
[BlackElo "2523"]
[Annotator "TA"]
[PlyCount "88"]
[EventDate "2023.12.27"]
[EventType "swiss"]
[EventCountry "SWE"]
[SourceTitle "playchess.com"]
[Source "ChessBase"]
[SourceQuality "1"]
[TimeControl "40/5400+30:1800+30"]

{[%evp 10,88,7,10,37,21,28,14,21,8,9,9,9,10,18,21,19,17,38,12,22,0,0,0,0,0,0,0,0,0,0,0,0,0,0,0,0,-15,-8,-7,-16,-16,0,0,0,0,0,0,0,-8,0,-52,-28,-76,-62,-109,-86,-161,-148,-161,-133,-166,-166,-179,-152,-175,-169,-422,-425,-413,-413,-379,-331,-595,-564,-988,-977,-987,-951,-1791,-1520]} 1. d4 {[%emt 0:00:03]} Nf6 {[%emt 0:00:13]} 2. c4 {[%emt 0:00:05][%cal Bc2c4,Bc4c5][%mdl 32]} e6 {[%emt 0:00:04]} 3. Nc3 {[%emt 0:00:05]} Bb4 {[%emt 0:00:06]} 4. e3 {[%emt 0:00:05]} O-O {[%emt 0:01:11]} 5. Bd3 {[%emt 0:00:13]} d5 {[%emt 0:01:00]} 6. a3 {[%emt 0:00:09][%cal Ba2a3,Ba3b4,Bb4c5][%mdl 32]} Bd6 {[%emt 0:04:15] E48: Nimzo-Indian: Rubinstein: 5 Bd3 d5 including 6 Ne2, but excluding 6 a3.} 7. c5 {[%emt 0:02:05]} Be7 {[%emt 0:00:02]} 8. f4 {[%emt 0:03:32]} a5 {[%emt 0:04:33] The position is equal.} 9. Rb1 {[%emt 0:01:21]} b6 {[%emt 0:04:50]} 10. b4 {[%emt 0:00:18]} axb4 {[%emt 0:01:21]} 11. axb4 {[%emt 0:00:09] [#]} bxc5 $146 {[%emt 0:00:04]} ({Predecessor:} 11... Bb7 12. Nf3 Ne4 13. Bd2 Nd7 14. O-O f5 15. Be1 g5 16. Bxe4 dxe4 17. Nxg5 Bxg5 18. fxg5 Qxg5 {1-0 Sarana,A (2675)-Przybylski,W (2321) Titled Tuesday intern op 31st May Late blitz 2022 (1)}) 12. bxc5 {[%emt 0:00:35]} Ba6 {[%emt 0:00:02]} 13. Nf3 {[%emt 0:05:16]} c6 {[%emt 0:04:46]} 14. Bxa6 {[%emt 0:08:16]} Rxa6 {[%emt 0:03:51]} 15. Qd3 {[%emt 0:02:52][%cal Ob1b8] [#] And now Rxb8! would win.} Ra7 {[%emt 0:01:27]} 16. O-O {[%emt 0:06:36]} Nbd7 {[%emt 0:00:03]} 17. Bd2 {[%emt 0:17:37]} Qa8 {[%emt 0:00:20]} 18. Rb4 {[%emt 0:03:44]} Bd8 {[%emt 0:01:50]} 19. Rfb1 {[%emt 0:01:23]} Ba5 {[%emt 0:01:46]} 20. Ra4 {[%emt 0:02:30] [#] Strongly threatening Rba1.} Bxc3 {[%emt 0:00:56]} 21. Rxa7 {[%emt 0:00:09]} Qxa7 {[%emt 0:00:02]} 22. Bxc3 {[%emt 0:03:46]} Ra8 {[%emt 0:02:25]} 23. Nd2 {[%emt 0:04:48]} h6 {[%emt 0:02:47]} 24. h3 {[%emt 0:02:57]} Qc7 {[%emt 0:00:45]} 25. Qc2 {[%emt 0:06:29]} Ra3 {[%emt 0:02:10]} 26. Qb2 {[%emt 0:01:45]} Qa7 {[%emt 0:02:16]} 27. Ra1 {[%emt 0:00:24]} Rxa1+ {[%emt 0:00:04]} 28. Qxa1 {[%emt 0:00:07]} Qb7 {[%emt 0:00:21]} 29. Qa4 {[%emt 0:04:08]} g5 {[%emt 0:03:48]} 30. Kf2 {[%emt 0:04:52]} (30. Qd1 $11) 30... Kg7 {[%emt 0:05:04]} 31. Ke2 {[%emt 0:02:12]} (31. fxg5 $11 {is superior.} hxg5 32. g3) 31... Nf8 $17 {[%emt 0:01:25]} 32. g3 {[%emt 0:02:29]} (32. fxg5 $15 {feels stronger.} hxg5 33. Kf2) 32... Ng6 {[%emt 0:01:22]} 33. Kf2 {[%emt 0:00:47]} (33. fxg5 $17 hxg5 34. Kf2) 33... gxf4 $19 {[%emt 0:01:55]} 34. gxf4 {[%emt 0:02:29]} Ne7 {[%emt 0:01:54]} 35. Qa5 {[%emt 0:01:15]} Nf5 {[%emt 0:01:11]} 36. Qb6 {[%emt 0:01:45]} Qa8 {[%emt 0:02:15]} 37. Qa5 {[%emt 0:00:24]} Qg8 {[%emt 0:01:24]} 38. Qc7 $2 {[%emt 0:03:45]} ({Avoid the trap} 38. Ke2 $2 Kh7 39. Qc7 Qg2+ 40. Kd3 Kg6 41. Qxc6 Qxh3 $19) (38. Qa1 {was the only defense.}) 38... Kh7 {[%emt 0:01:01]} 39. Ke2 {[%emt 0:02:02]} Qg2+ {[%emt 0:01:58]} 40. Kd3 {[%emt 0:00:38]} Qg6 {[%emt 0:06:04]} ({Don't take} 40... Qxh3 41. Qxf7+ (41. Qxc6 $2 {too greedy.} Nxe3 42. Qb7 Kg7 $19) 41... Ng7 42. Qxf6 $18) 41. Ke2 $2 {[%emt 0:32:29]} (41. Ba5 {might work better.}) 41... Kg7 {[%emt 0:36:05] Black is clearly winning.} 42. Qxc6 {[%emt 0:00:00]} Qg3 {[%emt 0:00:00]} 43. Kd3 {[%emt 0:00:00]} Nxe3 {[%emt 0:00:00] White must now prevent ...Nh5. Excellent horsemanship.} 44. Nb1 {[%emt 0:00:00]} Ne4 {[%emt 0:00:00] Weighted Error Value: White=0.65/Black=0.07 (flawless)} 0-1

[Event "51st Rilton Cup 2023-24"]
[Site "Stockholm"]
[Date "2023.12.31"]
[Round "5.14"]
[White "Rozentalis, Eduardas"]
[Black "Elmi, Saad Abobaker"]
[Result "1-0"]
[ECO "B40"]
[WhiteElo "2454"]
[BlackElo "2333"]
[Annotator "RC"]
[PlyCount "69"]
[EventDate "2023.12.27"]
[EventType "swiss"]
[EventCountry "SWE"]
[SourceTitle "playchess.com"]
[Source "ChessBase"]
[SourceQuality "1"]
[TimeControl "40/5400+30:1800+30"]

1. e4 {[%emt 0:00:30]} c5 {[%emt 0:00:30]} 2. Nf3 {[%emt 0:00:30]} e6 {[%emt 0:00:30]} 3. g3 {[%emt 0:01:10]} Nc6 {[%emt 0:02:27]} 4. Bg2 {[%emt 0:00:35]} Nf6 {[%emt 0:00:54]} 5. Qe2 {[%emt 0:01:09]} e5 {[%emt 0:00:36]} 6. c3 {[%emt 0:01:18]} d6 {[%emt 0:02:25]} 7. d3 {[%emt 0:00:35]} h6 {[%emt 0:01:57]} 8. a3 {[%emt 0:01:07]} a5 {[%emt 0:04:23]} 9. a4 {[%emt 0:00:46]} Be7 {[%emt 0:00:48]} 10. Na3 {[%emt 0:00:32]} O-O {[%emt 0:00:40]} 11. O-O {[%emt 0:02:44]} Re8 {[%emt 0:00:37]} 12. Nb5 {[%emt 0:02:53]} Bf8 {[%emt 0:04:45]} 13. Re1 {[%emt 0:01:59]} Be6 {[%emt 0:02:25]} 14. Nd2 {[%emt 0:02:03]} Bg4 {[%emt 0:12:24]} 15. Qf1 {[%emt 0:02:34]} Na7 {[%emt 0:01:31]} 16. Nxa7 {[%emt 0:04:51]} Rxa7 {[%emt 0:00:07]} 17. Nc4 {[%emt 0:00:04]} Bd7 {[%emt 0:00:39]} 18. f4 {[%emt 0:08:42]} b5 {[%emt 0:02:48]} 19. axb5 {[%emt 0:01:44]} Bxb5 {[%emt 0:00:06]} 20. Ne3 {[%emt 0:04:22]} exf4 {[%emt 0:06:01]} 21. gxf4 {[%emt 0:00:46]} Bc6 {[%emt 0:09:10]} 22. c4 {[%emt 0:07:31]} g6 {[%emt 0:02:17]} 23. Bd2 {[%emt 0:03:12]} Bg7 {[%emt 0:01:30]} 24. Bc3 {[%emt 0:00:44]} Nh5 {[%emt 0:03:54]} 25. Qf2 {[%emt 0:03:34]} a4 {[%emt 0:04:16]} 26. Rf1 {[%emt 0:05:32]} Rb7 {[%emt 0:04:47]} 27. Ng4 {[%emt 0:09:26]} Bxc3 {[%emt 0:01:57]} 28. bxc3 {[%emt 0:02:04]} Kg7 {[%emt 0:00:07]} 29. Ra2 {[%emt 0:03:06]} Qa5 {[%emt 0:05:56]} 30. Qd2 {[%emt 0:04:26]} a3 {[%emt 0:06:16]} 31. f5 {[%emt 0:08:36]} g5 {[%emt 0:02:02]} 32. f6+ {[%emt 0:02:05]} Kg6 {[%emt 0:04:34]} 33. e5 {[%emt 0:02:59]} Qc7 {[%emt 0:00:34]} 34. d4 {[%emt 0:00:34]} Nf4 {[%emt 0:02:58]} 35. Qc2+ {[%emt 0:06:30]} 1-0

[Event "51st Rilton Cup 2023-24"]
[Site "Stockholm"]
[Date "2023.12.31"]
[Round "5.15"]
[White "Shohat, Yotam"]
[Black "Terrieux, Kevin"]
[Result "1/2-1/2"]
[ECO "B33"]
[WhiteElo "2332"]
[BlackElo "2432"]
[Annotator "RC"]
[PlyCount "106"]
[EventDate "2023.12.27"]
[EventType "swiss"]
[EventCountry "SWE"]
[SourceTitle "playchess.com"]
[Source "ChessBase"]
[SourceQuality "1"]
[TimeControl "40/5400+30:1800+30"]

1. e4 {[%emt 0:00:04]} c5 {[%emt 0:00:17]} 2. Nf3 {[%emt 0:00:05]} Nc6 {[%emt 0:00:03]} 3. d4 {[%emt 0:00:13]} cxd4 {[%emt 0:00:06]} 4. Nxd4 {[%emt 0:00:05]} Qb6 {[%emt 0:00:04]} 5. Nb3 {[%emt 0:00:15]} Nf6 {[%emt 0:00:11]} 6. Nc3 {[%emt 0:00:06]} e6 {[%emt 0:00:48]} 7. a3 {[%emt 0:00:28]} Qc7 {[%emt 0:03:24]} 8. Be3 {[%emt 0:00:38]} a6 {[%emt 0:02:45]} 9. f4 {[%emt 0:00:47]} d6 {[%emt 0:00:30]} 10. Qf3 {[%emt 0:00:53]} b5 {[%emt 0:01:44]} 11. Bd3 {[%emt 0:02:18]} Be7 {[%emt 0:06:16]} 12. O-O {[%emt 0:00:29]} Bb7 {[%emt 0:04:09]} 13. Rae1 {[%emt 0:13:00]} O-O {[%emt 0:30:39]} 14. Qg3 {[%emt 0:09:00]} Rfe8 {[%emt 0:02:34]} 15. f5 {[%emt 0:03:45]} exf5 {[%emt 0:05:45]} 16. Nd4 {[%emt 0:14:12]} Nxd4 {[%emt 0:04:29]} 17. Bxd4 {[%emt 0:00:02]} Nh5 {[%emt 0:01:26]} 18. Qf2 {[%emt 0:16:00]} Bf6 {[%emt 0:04:20]} 19. exf5 {[%emt 0:01:40]} Bxd4 {[%emt 0:01:10]} 20. Qxd4 {[%emt 0:00:02]} Nf6 {[%emt 0:00:35]} 21. Ne4 {[%emt 0:08:47]} Bxe4 {[%emt 0:02:15]} 22. Bxe4 {[%emt 0:00:38]} Rac8 {[%emt 0:00:35]} 23. Bd3 {[%emt 0:05:20]} Re5 {[%emt 0:01:07]} 24. Rc1 {[%emt 0:08:23]} h5 {[%emt 0:05:52]} 25. h3 {[%emt 0:04:54]} Rd5 {[%emt 0:02:28]} 26. Qf4 {[%emt 0:01:35]} Re8 {[%emt 0:00:47]} 27. Qf2 {[%emt 0:02:42]} Rde5 {[%emt 0:06:58]} 28. c4 {[%emt 0:04:09]} Rc5 {[%emt 0:02:39]} 29. b3 {[%emt 0:01:16]} bxc4 {[%emt 0:02:44]} 30. Rxc4 {[%emt 0:00:02]} Rxc4 {[%emt 0:00:25]} 31. Bxc4 {[%emt 0:00:04]} d5 {[%emt 0:01:46]} 32. Bxa6 {[%emt 0:01:17]} Qa5 {[%emt 0:00:01]} 33. Bd3 {[%emt 0:01:11]} Qxa3 {[%emt 0:00:07]} 34. Rb1 {[%emt 0:02:11]} Qb4 {[%emt 0:00:28]} 35. Kh1 {[%emt 0:00:51]} h4 {[%emt 0:00:10]} 36. Qf3 {[%emt 0:00:23]} Qd4 {[%emt 0:04:30]} 37. Qd1 {[%emt 0:00:33]} Qb4 {[%emt 0:02:05]} 38. Qf3 {[%emt 0:00:02]} d4 {[%emt 0:02:27]} 39. Qf4 {[%emt 0:01:04]} Re3 {[%emt 0:00:20]} 40. Bc4 {[%emt 0:00:21]} Re1+ {[%emt 0:00:28]} 41. Rxe1 {[%emt 0:30:15]} Qxe1+ {[%emt 0:30:07]} 42. Kh2 {[%emt 0:00:00]} Nd7 {[%emt 0:00:00]} 43. Qxd4 {[%emt 0:00:00]} Ne5 {[%emt 0:00:00]} 44. Qf4 {[%emt 0:00:00]} Kf8 {[%emt 0:00:00]} 45. Bd5 {[%emt 0:00:00]} Ke7 {[%emt 0:00:05]} 46. b4 {[%emt 0:00:00]} f6 {[%emt 0:02:31]} 47. b5 {[%emt 0:00:00]} Kd6 {[%emt 0:00:15]} 48. Qd4 {[%emt 0:00:00]} Qg3+ {[%emt 0:00:34]} 49. Kg1 {[%emt 0:00:00]} Qe1+ {[%emt 0:00:05]} 50. Kh2 {[%emt 0:00:00]} Qg3+ {[%emt 0:00:24]} 51. Kg1 {[%emt 0:00:17]} Qe1+ {[%emt 0:00:02]} 52. Kh2 Ke7 {[%emt 0:00:01]} 53. Qf4 g5 {[%emt 0:00:04]} 1/2-1/2

[Event "51st Rilton Cup 2023-24"]
[Site "Stockholm"]
[Date "2023.12.31"]
[Round "5.16"]
[White "Rakesh Kumar Jena"]
[Black "Bronstein, Or"]
[Result "0-1"]
[ECO "B22"]
[WhiteElo "2335"]
[BlackElo "2428"]
[Annotator "RC"]
[PlyCount "120"]
[EventDate "2023.12.27"]
[EventType "swiss"]
[EventCountry "SWE"]
[SourceTitle "playchess.com"]
[Source "ChessBase"]
[SourceQuality "1"]
[TimeControl "40/5400+30:1800+30"]

1. e4 {[%emt 0:00:02]} c5 {[%emt 0:02:53]} 2. c3 {[%emt 0:00:06]} d5 {[%emt 0:07:02]} 3. exd5 {[%emt 0:00:44]} Qxd5 {[%emt 0:00:06]} 4. d4 {[%emt 0:00:10]} e6 {[%emt 0:01:23]} 5. Nf3 {[%emt 0:00:18]} Nf6 {[%emt 0:00:02]} 6. Be2 {[%emt 0:03:27]} Be7 {[%emt 0:08:10]} 7. Be3 {[%emt 0:00:48]} cxd4 {[%emt 0:07:22]} 8. cxd4 {[%emt 0:00:53]} Nc6 {[%emt 0:03:08]} 9. Nc3 {[%emt 0:00:12]} Qd6 {[%emt 0:15:42]} 10. O-O {[%emt 0:01:01]} O-O {[%emt 0:00:03]} 11. a3 {[%emt 0:00:16]} b6 {[%emt 0:06:45]} 12. Bc4 {[%emt 0:05:56]} Bb7 {[%emt 0:00:43]} 13. Ba2 {[%emt 0:00:38]} Rfd8 {[%emt 0:02:55]} 14. Qe2 {[%emt 0:00:32]} Bf8 {[%emt 0:06:22]} 15. Rac1 {[%emt 0:00:22]} Rac8 {[%emt 0:00:53]} 16. Rfd1 {[%emt 0:00:50]} Ne7 {[%emt 0:02:57]} 17. Bg5 {[%emt 0:03:01]} Nfd5 {[%emt 0:03:57]} 18. Ne4 {[%emt 0:02:35]} Qb8 {[%emt 0:01:28]} 19. Ne5 {[%emt 0:00:24]} Rxc1 {[%emt 0:08:31]} 20. Bxc1 {[%emt 0:00:47]} Qc8 {[%emt 0:11:27]} 21. Qh5 {[%emt 0:14:59]} g6 {[%emt 0:00:36]} 22. Qh3 {[%emt 0:01:08]} Qc2 {[%emt 0:03:28]} 23. Re1 {[%emt 0:02:47]} Rc8 {[%emt 0:00:01]} 24. Bg5 {[%emt 0:05:30]} Qxb2 {[%emt 0:05:45]} 25. Nf6+ {[%emt 0:00:14]} Nxf6 {[%emt 0:00:02]} 26. Bxe6 {[%emt 0:00:05]} Ne4 {[%emt 0:00:53]} 27. Be3 {[%emt 0:02:25]} fxe6 {[%emt 0:00:39]} 28. Qxe6+ {[%emt 0:00:06]} Kg7 {[%emt 0:00:28]} 29. Ng4 {[%emt 0:07:52]} Nf5 {[%emt 0:00:42]} 30. Qd7+ {[%emt 0:00:35]} Kh8 {[%emt 0:00:18]} 31. Qxb7 {[%emt 0:01:56]} Qc3 {[%emt 0:00:02]} 32. Rf1 {[%emt 0:00:38]} Qc6 {[%emt 0:00:28]} 33. Qxa7 {[%emt 0:00:26]} Bg7 {[%emt 0:00:56]} 34. h3 {[%emt 0:01:18]} Ra8 {[%emt 0:00:24]} 35. Qf7 {[%emt 0:00:11]} Rf8 {[%emt 0:00:01]} 36. d5 {[%emt 0:01:17]} Qd6 {[%emt 0:00:37]} 37. Qe6 {[%emt 0:02:45]} Qxe6 {[%emt 0:00:07]} 38. dxe6 {[%emt 0:00:01]} h5 {[%emt 0:00:49]} 39. Bxb6 {[%emt 0:00:48]} hxg4 {[%emt 0:00:07]} 40. hxg4 {[%emt 0:00:03]} Nfd6 {[%emt 0:01:17]} 41. Rd1 {[%emt 0:30:53]} Re8 {[%emt 0:09:12]} 42. f3 {[%emt 0:00:00]} Nc4 {[%emt 0:00:27]} 43. Rd8 {[%emt 0:00:00]} Rxd8 {[%emt 0:04:29]} 44. Bxd8 {[%emt 0:00:00]} Bd4+ {[%emt 0:01:08]} 45. Kf1 {[%emt 0:00:00]} Ned6 {[%emt 0:02:58]} 46. a4 {[%emt 0:00:00]} Kg7 {[%emt 0:00:48]} 47. Ke2 {[%emt 0:00:00]} Ne5 {[%emt 0:02:24]} 48. g5 {[%emt 0:00:00]} Nc6 {[%emt 0:01:00]} 49. Kd3 {[%emt 0:00:00]} Be5 {[%emt 0:00:58]} 50. Bc7 {[%emt 0:00:00]} Nb4+ {[%emt 0:00:11]} 51. Ke2 {[%emt 0:00:00]} Nd5 {[%emt 0:00:41]} 52. Bxd6 {[%emt 0:00:00]} Nf4+ {[%emt 0:01:41]} 53. Ke3 {[%emt 0:00:00]} Bxd6 {[%emt 0:00:05]} 54. Ke4 {[%emt 0:00:00]} Kf8 {[%emt 0:01:03]} 55. g3 {[%emt 0:00:00]} Nxe6 {[%emt 0:01:06]} 56. f4 {[%emt 0:00:00]} Ke7 {[%emt 0:00:52]} 57. a5 {[%emt 0:00:00]} Bc7 {[%emt 0:00:20]} 58. a6 {[%emt 0:00:00]} Nc5+ {[%emt 0:00:15]} 59. Kf3 {[%emt 0:00:00]} Nxa6 {[%emt 0:00:18]} 60. g4 {[%emt 0:00:00]} Bxf4 {[%emt 0:00:20]} 0-1

[Event "51st Rilton Cup 2023-24"]
[Site "Stockholm"]
[Date "2023.12.31"]
[Round "5.17"]
[White "Tulchynskyi, Feliks"]
[Black "Sidhant, Mohapatra"]
[Result "1/2-1/2"]
[ECO "D46"]
[WhiteElo "2325"]
[BlackElo "2408"]
[Annotator "RC"]
[PlyCount "39"]
[EventDate "2023.12.27"]
[EventType "swiss"]
[EventCountry "SWE"]
[SourceTitle "playchess.com"]
[Source "ChessBase"]
[SourceQuality "1"]
[TimeControl "40/5400+30:1800+30"]

1. d4 {[%emt 0:00:08]} d5 {[%emt 0:00:31]} 2. c4 {[%emt 0:01:22]} c6 {[%emt 0:00:08]} 3. e3 {[%emt 0:00:32]} Nf6 {[%emt 0:00:22]} 4. Nc3 {[%emt 0:00:08]} e6 {[%emt 0:00:05]} 5. Bd3 {[%emt 0:01:59]} Nbd7 {[%emt 0:04:02]} 6. Nf3 {[%emt 0:01:28]} dxc4 {[%emt 0:00:56]} 7. Bxc4 {[%emt 0:00:08]} b5 {[%emt 0:01:07]} 8. Bd3 {[%emt 0:00:59]} Bd6 {[%emt 0:00:53]} 9. O-O {[%emt 0:15:18]} O-O {[%emt 0:00:41]} 10. Qc2 {[%emt 0:03:07]} Bb7 {[%emt 0:00:35]} 11. Ne4 {[%emt 0:02:05]} Be7 {[%emt 0:05:52]} 12. Nxf6+ {[%emt 0:02:12]} Nxf6 {[%emt 0:00:05]} 13. e4 {[%emt 0:02:44]} h6 {[%emt 0:00:22]} 14. Rd1 {[%emt 0:03:15]} Qb6 {[%emt 0:06:05]} 15. a4 {[%emt 0:06:58]} a6 {[%emt 0:04:39]} 16. Be3 {[%emt 0:03:27]} Ng4 {[%emt 0:01:27]} 17. Bf4 {[%emt 0:01:26]} Nf6 {[%emt 0:01:09]} 18. Be3 {[%emt 0:02:21]} Ng4 {[%emt 0:00:05]} 19. Bf4 {[%emt 0:00:14]} Nf6 {[%emt 0:00:03]} 20. Be3 {[%emt 0:01:11]} 1/2-1/2

[Event "51st Rilton Cup 2023-24"]
[Site "Stockholm"]
[Date "2023.12.31"]
[Round "5.18"]
[White "Eilenberg, Jonas"]
[Black "Socko, Monika"]
[Result "0-1"]
[ECO "E32"]
[WhiteElo "2318"]
[BlackElo "2396"]
[Annotator "RC"]
[PlyCount "64"]
[EventDate "2023.12.27"]
[EventType "swiss"]
[EventCountry "SWE"]
[SourceTitle "playchess.com"]
[Source "ChessBase"]
[SourceQuality "1"]
[TimeControl "40/5400+30:1800+30"]

1. d4 {[%emt 0:00:02]} Nf6 {[%emt 0:00:10]} 2. c4 {[%emt 0:00:11]} e6 {[%emt 0:00:05]} 3. Nc3 {[%emt 0:00:06]} Bb4 {[%emt 0:00:04]} 4. Qc2 {[%emt 0:00:08]} d6 {[%emt 0:00:59]} 5. Bd2 {[%emt 0:00:12]} O-O {[%emt 0:01:19]} 6. a3 {[%emt 0:00:06]} Bxc3 {[%emt 0:00:51]} 7. Bxc3 {[%emt 0:00:07]} d5 {[%emt 0:03:10]} 8. e3 {[%emt 0:01:00]} b6 {[%emt 0:01:40]} 9. cxd5 {[%emt 0:02:12]} exd5 {[%emt 0:04:20]} 10. Bd3 {[%emt 0:00:12]} Ba6 {[%emt 0:03:20]} 11. Bxa6 {[%emt 0:01:59]} Nxa6 {[%emt 0:00:04]} 12. Ne2 {[%emt 0:00:32]} Qd7 {[%emt 0:04:14]} 13. O-O {[%emt 0:01:30]} Rfe8 {[%emt 0:00:55]} 14. Rae1 {[%emt 0:02:58]} c6 {[%emt 0:05:39]} 15. Qd3 {[%emt 0:03:30]} Nc7 {[%emt 0:00:58]} 16. f3 {[%emt 0:02:48]} Nb5 {[%emt 0:02:05]} 17. Ng3 {[%emt 0:02:37]} Rad8 {[%emt 0:02:44]} 18. e4 {[%emt 0:13:20]} dxe4 {[%emt 0:10:44]} 19. fxe4 {[%emt 0:00:29]} Nxd4 {[%emt 0:02:47]} 20. Rxf6 {[%emt 0:04:48]} gxf6 {[%emt 0:00:08]} 21. Nh5 {[%emt 0:00:33]} Re6 {[%emt 0:01:18]} 22. Qg3+ {[%emt 0:04:54]} Kf8 {[%emt 0:00:05]} 23. Qg7+ {[%emt 0:03:59]} Ke7 {[%emt 0:00:32]} 24. Kh1 {[%emt 0:03:28]} c5 {[%emt 0:03:37]} 25. Ng3 {[%emt 0:09:32]} Re5 {[%emt 0:10:53]} 26. Rf1 {[%emt 0:06:06]} Qe6 {[%emt 0:00:23]} 27. h4 {[%emt 0:00:36]} h5 {[%emt 0:04:15]} 28. Kh2 {[%emt 0:00:58]} Rd6 {[%emt 0:07:16]} 29. Rf4 {[%emt 0:04:15]} Kd7 {[%emt 0:05:12]} 30. Qh8 {[%emt 0:03:07]} Kc7 {[%emt 0:01:45]} 31. Qa8 {[%emt 0:05:52]} Nb5 {[%emt 0:00:44]} 32. Bxe5 {[%emt 0:00:37]} fxe5 {[%emt 0:00:05]} 0-1